[Event "Titled Tuesday Blitz January 18 2022"]
[White "Lorparizangeneh, Shahin"]
[Black "Moskalenko, Alexander"]
[WhiteFideId "12521604"]
[BlackFideId "4155351"]
[WhiteElo "2741"]
[BlackElo "2874"]
[Result "0-1"]
[Round "07"]
[TimeControl "180+1"]
[Date "2022.01.18"]
[WhiteClock "0:00:06"]
[BlackClock "0:00:07"]

1. e4 {[%clk 0:03:00]}  c5 {[%clk 0:02:59]} 2. Nf3 {[%clk 0:03:00]}  d6 {[%clk 0:02:57]} 3. Nc3 {[%clk 0:02:59]}  a6 {[%clk 0:02:57]} 4. g3 {[%clk 0:02:56]}  Nf6 {[%clk 0:02:56]} 5. Bg2 {[%clk 0:02:56]}  e6 {[%clk 0:02:51]} 6. O-O {[%clk 0:02:53]}  Be7 {[%clk 0:02:52]} 7. d4 {[%clk 0:02:48]}  cxd4 {[%clk 0:02:53]} 8. Nxd4 {[%clk 0:02:48]}  O-O {[%clk 0:02:53]} 9. a4 {[%clk 0:02:48]}  Qc7 {[%clk 0:02:53]} 10. Be3 {[%clk 0:02:43]}  Nc6 {[%clk 0:02:53]} 11. g4 {[%clk 0:02:33]}  Nd7 {[%clk 0:02:50]} 12. g5 {[%clk 0:02:32]}  Nxd4 {[%clk 0:02:44]} 13. Qxd4 {[%clk 0:02:31]}  Ne5 {[%clk 0:02:45]} 14. b3 {[%clk 0:02:20]}  Bd7 {[%clk 0:02:43]} 15. Rac1 {[%clk 0:02:13]}  Rac8 {[%clk 0:02:37]} 16. Ne2 {[%clk 0:02:13]}  Ng4 {[%clk 0:02:37]} 17. Bd2 {[%clk 0:02:10]}  d5 {[%clk 0:02:36]} 18. Ng3 {[%clk 0:01:51]}  Bc5 {[%clk 0:02:36]} 19. Qd3 {[%clk 0:01:48]}  Ba3 {[%clk 0:01:55]} 20. exd5 {[%clk 0:01:37]}  Bxc1 {[%clk 0:01:55]} 21. Rxc1 {[%clk 0:01:36]}  exd5 {[%clk 0:01:55]} 22. h3 {[%clk 0:01:30]}  Ne5 {[%clk 0:01:54]} 23. Qd4 {[%clk 0:01:31]}  Rfe8 {[%clk 0:01:42]} 24. Bf4 {[%clk 0:01:17]}  Nc6 {[%clk 0:01:28]} 25. Qd2 {[%clk 0:01:07]}  Qa5 {[%clk 0:01:28]} 26. Qd1 {[%clk 0:00:55]}  d4 {[%clk 0:01:22]} 27. Qh5 {[%clk 0:00:40]}  Bf5 {[%clk 0:00:51]} 28. Kh2 {[%clk 0:00:35]}  Bg6 {[%clk 0:00:50]} 29. Qg4 {[%clk 0:00:34]}  Ne5 {[%clk 0:00:49]} 30. Qd1 {[%clk 0:00:30]}  d3 {[%clk 0:00:39]} 31. cxd3 {[%clk 0:00:20]}  Rxc1 {[%clk 0:00:39]} 32. Bxc1 {[%clk 0:00:19]}  Nxd3 {[%clk 0:00:40]} 33. Be3 {[%clk 0:00:20]}  Qc7 {[%clk 0:00:31]} 34. h4 {[%clk 0:00:19]}  Ne5 {[%clk 0:00:22]} 35. Qd4 {[%clk 0:00:18]}  Bf5 {[%clk 0:00:17]} 36. Bf4 {[%clk 0:00:19]}  Ng4+ {[%clk 0:00:16]} 37. Kg1 {[%clk 0:00:19]}  Qc8 {[%clk 0:00:12]} 38. Bf3 {[%clk 0:00:19]}  Be6 {[%clk 0:00:06]} 39. Nh5 {[%clk 0:00:19]}  f6 {[%clk 0:00:05]} 40. gxf6 {[%clk 0:00:17]}  Nxf6 {[%clk 0:00:06]} 41. Nxf6+ {[%clk 0:00:17]}  gxf6 {[%clk 0:00:06]} 42. Qxf6 {[%clk 0:00:17]}  Qd8 {[%clk 0:00:03]} 43. Qh6 {[%clk 0:00:09]}  Qe7 {[%clk 0:00:03]} 44. Bg5 {[%clk 0:00:08]}  Qf7 {[%clk 0:00:03]} 45. Bh5 {[%clk 0:00:08]}  Qd7 {[%clk 0:00:02]} 46. Bxe8 {[%clk 0:00:08]}  Qxe8 {[%clk 0:00:03]} 47. Qf6 {[%clk 0:00:08]}  Qg6 {[%clk 0:00:03]} 48. Qd8+ {[%clk 0:00:08]}  Kf7 {[%clk 0:00:03]} 49. Qe7+ {[%clk 0:00:08]}  Kg8 {[%clk 0:00:04]} 50. Kh2 {[%clk 0:00:08]}  Qf5 {[%clk 0:00:03]} 51. Qd8+ {[%clk 0:00:07]}  Kf7 {[%clk 0:00:03]} 52. Qd4 {[%clk 0:00:08]}  Qg4 {[%clk 0:00:03]} 53. Qe3 {[%clk 0:00:08]}  Qf5 {[%clk 0:00:02]} 54. b4 {[%clk 0:00:07]}  h5 {[%clk 0:00:03]} 55. f3 {[%clk 0:00:05]}  Kg6 {[%clk 0:00:03]} 56. Kg3 {[%clk 0:00:06]}  Qd5 {[%clk 0:00:03]} 57. b5 {[%clk 0:00:06]}  Qf5 {[%clk 0:00:04]} 58. bxa6 {[%clk 0:00:06]}  bxa6 {[%clk 0:00:03]} 59. a5 {[%clk 0:00:07]}  Qh3+ {[%clk 0:00:03]} 60. Kf2 {[%clk 0:00:06]}  Qh2+ {[%clk 0:00:03]} 61. Ke1 {[%clk 0:00:07]}  Qh1+ {[%clk 0:00:03]} 62. Kd2 {[%clk 0:00:07]}  Qh2+ {[%clk 0:00:04]} 63. Kc3 {[%clk 0:00:07]}  Qc7+ {[%clk 0:00:04]} 64. Kd4 {[%clk 0:00:08]}  Qd6+ {[%clk 0:00:04]} 65. Kc3 {[%clk 0:00:08]}  Qa3+ {[%clk 0:00:04]} 66. Kd2 {[%clk 0:00:08]}  Qxa5+ {[%clk 0:00:04]} 67. Ke2 {[%clk 0:00:09]}  Qd5 {[%clk 0:00:05]} 68. Kf2 {[%clk 0:00:07]}  a5 {[%clk 0:00:05]} 69. Bh6 {[%clk 0:00:07]}  a4 {[%clk 0:00:05]} 70. Bf8 {[%clk 0:00:08]}  Kf7 {[%clk 0:00:05]} 71. Ba3 {[%clk 0:00:07]}  Qa2+ {[%clk 0:00:04]} 72. Kg3 {[%clk 0:00:07]}  Qd5 {[%clk 0:00:05]} 73. Qf4+ {[%clk 0:00:07]}  Qf5 {[%clk 0:00:05]} 74. Qc7+ {[%clk 0:00:08]}  Bd7 {[%clk 0:00:04]} 75. Qd6 {[%clk 0:00:08]}  Qh3+ {[%clk 0:00:04]} 76. Kf2 {[%clk 0:00:07]}  Qe6 {[%clk 0:00:05]} 77. Qf4+ {[%clk 0:00:06]}  Qf5 {[%clk 0:00:05]} 78. Qb4 {[%clk 0:00:05]}  Qc2+ {[%clk 0:00:04]} 79. Kg3 {[%clk 0:00:06]}  Qf5 {[%clk 0:00:04]} 80. Qf8+ {[%clk 0:00:05]}  Kg6 {[%clk 0:00:02]} 81. Qg8+ {[%clk 0:00:05]}  Kf6 {[%clk 0:00:01]} 82. Bb2+ {[%clk 0:00:05]}  Ke7 {[%clk 0:00:02]} 83. Ba3+ {[%clk 0:00:05]}  Kf6 {[%clk 0:00:02]} 84. Bb2+ {[%clk 0:00:05]}  Ke7 {[%clk 0:00:02]} 85. Qg7+ {[%clk 0:00:06]}  Ke6 {[%clk 0:00:02]} 86. Qg8+ {[%clk 0:00:05]}  Kd6 {[%clk 0:00:02]} 87. Qb8+ {[%clk 0:00:05]}  Kc6 {[%clk 0:00:03]} 88. Qa8+ {[%clk 0:00:05]}  Kb5 {[%clk 0:00:03]} 89. Qb7+ {[%clk 0:00:05]}  Kc4 {[%clk 0:00:04]} 90. Qc7+ {[%clk 0:00:05]}  Kb3 {[%clk 0:00:04]} 91. Qc3+ {[%clk 0:00:06]}  Ka2 {[%clk 0:00:04]} 92. Qa3+ {[%clk 0:00:06]}  Kb1 {[%clk 0:00:05]} 93. Qa1+ {[%clk 0:00:06]}  Kc2 {[%clk 0:00:05]} 94. Qc1+ {[%clk 0:00:07]}  Kb3 {[%clk 0:00:05]} 95. Qc3+ {[%clk 0:00:07]}  Ka2 {[%clk 0:00:06]} 96. Bc1 {[%clk 0:00:07]}  Qg6+ {[%clk 0:00:04]} 97. Kf2 {[%clk 0:00:07]}  Qb6+ {[%clk 0:00:05]} 98. Kg2 {[%clk 0:00:07]}  Qb3 {[%clk 0:00:05]} 99. Qd2+ {[%clk 0:00:07]}  Kb1 {[%clk 0:00:06]} 100. Qf4 {[%clk 0:00:06]}  Bc6 {[%clk 0:00:06]} 101. Be3 {[%clk 0:00:06]}  a3 {[%clk 0:00:06]} 102. Qf5+ {[%clk 0:00:06]}  Qc2+ {[%clk 0:00:05]} 103. Qxc2+ {[%clk 0:00:06]}  Kxc2 {[%clk 0:00:06]} 104. Bd4 {[%clk 0:00:06]}  a2 {[%clk 0:00:07]} 105. Kg3 {[%clk 0:00:07]}  Kb1 {[%clk 0:00:07]} 106. Kf4 {[%clk 0:00:07]}  a1=Q {[%clk 0:00:07]} 107. Bxa1 {[%clk 0:00:08]}  Kxa1 {[%clk 0:00:07]} 108. Ke3 {[%clk 0:00:07]}  Kb2 {[%clk 0:00:07]} 109. f4 {[%clk 0:00:08]}  Kc3 {[%clk 0:00:08]} 110. f5 {[%clk 0:00:08]}  Be8 {[%clk 0:00:08]} 111. Kf4 {[%clk 0:00:09]}  Kd3 {[%clk 0:00:08]} 112. Kg5 {[%clk 0:00:08]}  Ke4 {[%clk 0:00:08]} 113. Kf6 {[%clk 0:00:08]}  Kf4 {[%clk 0:00:08]} 114. Ke6 {[%clk 0:00:08]}  Kg4 {[%clk 0:00:06]} 115. f6 {[%clk 0:00:06]}  Ba4 {[%clk 0:00:04]} 116. Ke5 {[%clk 0:00:05]}  Bb3 {[%clk 0:00:05]} 117. Kd4 {[%clk 0:00:04]}  Kxh4 {[%clk 0:00:05]} 118. Ke3 {[%clk 0:00:05]}  Bf7 {[%clk 0:00:06]} 119. Kf2 {[%clk 0:00:05]}  Kg5 {[%clk 0:00:06]} 120. Kg3 {[%clk 0:00:06]}  Kxf6 {[%clk 0:00:07]} 0-1


[Site "https://www.chess.com"]

[Event "Titled Tuesday Blitz January 18 2022"]
[White "Nakamura, Hikaru"]
[Black "Hakobyan, Aram"]
[WhiteFideId "2016192"]
[BlackFideId "13306677"]
[WhiteElo "3222"]
[BlackElo "3024"]
[Result "1-0"]
[Round "07"]
[TimeControl "180+1"]
[Date "2022.01.18"]
[WhiteClock "0:00:26"]
[BlackClock "0:00:04"]

1. Nf3 {[%clk 0:02:42]}  Nf6 {[%clk 0:03:00]} 2. b3 {[%clk 0:02:42]}  c5 {[%clk 0:02:57]} 3. Bb2 {[%clk 0:02:43]}  d5 {[%clk 0:02:57]} 4. e3 {[%clk 0:02:43]}  a6 {[%clk 0:02:58]} 5. d4 {[%clk 0:02:44]}  cxd4 {[%clk 0:02:57]} 6. Nxd4 {[%clk 0:02:45]}  Qc7 {[%clk 0:02:47]} 7. Nd2 {[%clk 0:02:42]}  e5 {[%clk 0:02:45]} 8. N4f3 {[%clk 0:02:42]}  Nc6 {[%clk 0:02:45]} 9. c4 {[%clk 0:02:42]}  Be6 {[%clk 0:02:43]} 10. cxd5 {[%clk 0:02:41]}  Bxd5 {[%clk 0:02:39]} 11. a3 {[%clk 0:02:39]}  Rd8 {[%clk 0:02:31]} 12. Qc2 {[%clk 0:02:39]}  Qb8 {[%clk 0:01:50]} 13. Bc4 {[%clk 0:02:36]}  Be7 {[%clk 0:01:50]} 14. O-O {[%clk 0:02:30]}  O-O {[%clk 0:01:50]} 15. Rfd1 {[%clk 0:02:21]}  Rd7 {[%clk 0:01:21]} 16. Bxd5 {[%clk 0:02:02]}  Rxd5 {[%clk 0:01:21]} 17. Nc4 {[%clk 0:01:59]}  Rc5 {[%clk 0:00:54]} 18. b4 {[%clk 0:01:58]}  Rb5 {[%clk 0:00:54]} 19. Rac1 {[%clk 0:01:53]}  e4 {[%clk 0:00:47]} 20. Nfd2 {[%clk 0:01:10]}  Rh5 {[%clk 0:00:47]} 21. h3 {[%clk 0:01:05]}  b5 {[%clk 0:00:20]} 22. Bxf6 {[%clk 0:01:03]}  Bxf6 {[%clk 0:00:21]} 23. Qxe4 {[%clk 0:01:03]}  Nxb4 {[%clk 0:00:18]} 24. axb4 {[%clk 0:01:03]}  Rh4 {[%clk 0:00:11]} 25. f4 {[%clk 0:00:54]}  bxc4 {[%clk 0:00:06]} 26. Rxc4 {[%clk 0:00:53]}  Re8 {[%clk 0:00:05]} 27. Qf3 {[%clk 0:00:51]}  g6 {[%clk 0:00:03]} 28. Ne4 {[%clk 0:00:48]}  Be7 {[%clk 0:00:03]} 29. g4 {[%clk 0:00:44]}  Qb5 {[%clk 0:00:03]} 30. Rcd4 {[%clk 0:00:43]}  Qa4 {[%clk 0:00:03]} 31. Kg2 {[%clk 0:00:43]}  Qa2+ {[%clk 0:00:03]} 32. R1d2 {[%clk 0:00:43]}  Qa4 {[%clk 0:00:03]} 33. g5 {[%clk 0:00:41]}  h6 {[%clk 0:00:03]} 34. gxh6 {[%clk 0:00:37]}  Rxh6 {[%clk 0:00:03]} 35. Nf2 {[%clk 0:00:38]}  Rh5 {[%clk 0:00:04]} 36. e4 {[%clk 0:00:37]}  Bf8 {[%clk 0:00:04]} 37. e5 {[%clk 0:00:37]}  Bg7 {[%clk 0:00:05]} 38. Ne4 {[%clk 0:00:35]}  Kh8 {[%clk 0:00:03]} 39. Rd8 {[%clk 0:00:33]}  Rf8 {[%clk 0:00:04]} 40. Ng5 {[%clk 0:00:32]}  Kg8 {[%clk 0:00:04]} 41. Qd5 {[%clk 0:00:27]}  Rxd8 {[%clk 0:00:04]} 42. Qxf7+ {[%clk 0:00:26]} 1-0


[Site "https://www.chess.com"]

[Event "Titled Tuesday Blitz January 18 2022"]
[White "Nesterov, Arseniy"]
[Black "FGHSMN"]
[WhiteFideId "24198455"]
[WhiteElo "2897"]
[BlackElo "2750"]
[Result "1-0"]
[Round "07"]
[TimeControl "180+1"]
[Date "2022.01.18"]
[WhiteClock "0:00:18"]
[BlackClock "0:00:01"]

1. d4 {[%clk 0:03:00]}  Nf6 {[%clk 0:02:58]} 2. c4 {[%clk 0:03:00]}  e6 {[%clk 0:02:58]} 3. Nc3 {[%clk 0:02:59]}  c5 {[%clk 0:02:59]} 4. d5 {[%clk 0:02:59]}  exd5 {[%clk 0:03:00]} 5. cxd5 {[%clk 0:03:00]}  d6 {[%clk 0:03:00]} 6. Nf3 {[%clk 0:03:01]}  g6 {[%clk 0:03:01]} 7. Nd2 {[%clk 0:03:02]}  Nbd7 {[%clk 0:02:58]} 8. e4 {[%clk 0:03:02]}  Bg7 {[%clk 0:02:57]} 9. Be2 {[%clk 0:03:02]}  O-O {[%clk 0:02:57]} 10. O-O {[%clk 0:03:02]}  a6 {[%clk 0:02:57]} 11. a4 {[%clk 0:03:02]}  Re8 {[%clk 0:02:57]} 12. f4 {[%clk 0:03:03]}  Rb8 {[%clk 0:02:54]} 13. Qc2 {[%clk 0:02:55]}  h5 {[%clk 0:02:52]} 14. h3 {[%clk 0:02:52]}  Ng4 {[%clk 0:02:23]} 15. Nf3 {[%clk 0:02:50]}  Ngf6 {[%clk 0:02:02]} 16. f5 {[%clk 0:02:49]}  Qe7 {[%clk 0:01:32]} 17. Bg5 {[%clk 0:02:27]}  Ne5 {[%clk 0:01:28]} 18. Nh4 {[%clk 0:02:23]}  Rf8 {[%clk 0:01:19]} 19. Qd2 {[%clk 0:01:59]}  Qe8 {[%clk 0:01:02]} 20. Bh6 {[%clk 0:01:46]}  Nh7 {[%clk 0:00:57]} 21. Bxg7 {[%clk 0:01:37]}  Kxg7 {[%clk 0:00:56]} 22. Rf2 {[%clk 0:01:27]}  Qe7 {[%clk 0:00:43]} 23. Qf4 {[%clk 0:01:11]}  Qg5 {[%clk 0:00:35]} 24. g3 {[%clk 0:00:57]}  Bd7 {[%clk 0:00:22]} 25. a5 {[%clk 0:00:45]}  b5 {[%clk 0:00:19]} 26. axb6 {[%clk 0:00:44]}  Rxb6 {[%clk 0:00:19]} 27. Rxa6 {[%clk 0:00:36]}  Rxa6 {[%clk 0:00:16]} 28. Bxa6 {[%clk 0:00:37]}  Ra8 {[%clk 0:00:13]} 29. Bb5 {[%clk 0:00:29]}  Bxb5 {[%clk 0:00:07]} 30. Nxb5 {[%clk 0:00:30]}  Qxf4 {[%clk 0:00:07]} 31. gxf4 {[%clk 0:00:30]}  Nd3 {[%clk 0:00:07]} 32. Rf3 {[%clk 0:00:29]}  Ra1+ {[%clk 0:00:06]} 33. Kh2 {[%clk 0:00:28]}  Nxb2 {[%clk 0:00:04]} 34. Nxd6 {[%clk 0:00:26]}  c4 {[%clk 0:00:02]} 35. Rg3 {[%clk 0:00:18]}  Nf8 {[%clk 0:00:02]} 36. e5 {[%clk 0:00:19]}  Rd1 {[%clk 0:00:01]} 37. e6 {[%clk 0:00:18]} 1-0


[Site "https://www.chess.com"]

[Event "Titled Tuesday Blitz January 18 2022"]
[White "Nigmatov, Ortik"]
[Black "Vovk, Orest"]
[WhiteFideId "14202131"]
[BlackFideId "14113490"]
[WhiteElo "2762"]
[BlackElo "2664"]
[Result "0-1"]
[Round "07"]
[TimeControl "180+1"]
[Date "2022.01.18"]
[WhiteClock "0:01:36"]
[BlackClock "0:01:33"]

1. e4 {[%clk 0:03:00]}  d6 {[%clk 0:02:58]} 2. b3 {[%clk 0:03:00]}  Nf6 {[%clk 0:02:56]} 3. Qe2 {[%clk 0:02:59]}  e5 {[%clk 0:02:56]} 4. Bb2 {[%clk 0:02:59]}  Nc6 {[%clk 0:02:56]} 5. Nf3 {[%clk 0:02:54]}  Be7 {[%clk 0:02:56]} 6. g3 {[%clk 0:02:53]}  O-O {[%clk 0:02:55]} 7. h3 {[%clk 0:02:52]}  Re8 {[%clk 0:02:52]} 8. Bg2 {[%clk 0:02:53]}  Bf8 {[%clk 0:02:52]} 9. O-O {[%clk 0:02:53]}  g6 {[%clk 0:02:53]} 10. c4 {[%clk 0:02:49]}  Bg7 {[%clk 0:02:52]} 11. Nc3 {[%clk 0:02:50]}  Nd4 {[%clk 0:02:47]} 12. Nxd4 {[%clk 0:02:49]}  exd4 {[%clk 0:02:48]} 13. Nd5 {[%clk 0:02:49]}  Nxd5 {[%clk 0:02:47]} 14. cxd5 {[%clk 0:02:49]}  d3 {[%clk 0:02:45]} 15. Qxd3 {[%clk 0:02:47]}  Bxb2 {[%clk 0:02:45]} 16. Rab1 {[%clk 0:02:47]}  Bg7 {[%clk 0:02:44]} 17. Rbc1 {[%clk 0:02:45]}  Bd7 {[%clk 0:02:37]} 18. Rc2 {[%clk 0:02:43]}  c5 {[%clk 0:02:36]} 19. dxc6 {[%clk 0:02:42]}  Bxc6 {[%clk 0:02:36]} 20. Rcc1 {[%clk 0:02:25]}  Qb6 {[%clk 0:02:29]} 21. Rfe1 {[%clk 0:02:11]}  Rad8 {[%clk 0:02:28]} 22. h4 {[%clk 0:02:09]}  Qd4 {[%clk 0:02:23]} 23. Qc2 {[%clk 0:02:08]}  h5 {[%clk 0:02:19]} 24. d3 {[%clk 0:02:06]}  Re5 {[%clk 0:02:02]} 25. Qc4 {[%clk 0:02:02]}  Qxc4 {[%clk 0:02:00]} 26. bxc4 {[%clk 0:02:03]}  Ra5 {[%clk 0:01:59]} 27. Re2 {[%clk 0:02:01]}  Bd4 {[%clk 0:01:58]} 28. Kf1 {[%clk 0:02:00]}  Ra3 {[%clk 0:01:58]} 29. Rd2 {[%clk 0:01:58]}  Re8 {[%clk 0:01:56]} 30. Rb1 {[%clk 0:01:53]}  Re5 {[%clk 0:01:53]} 31. Rc1 {[%clk 0:01:48]}  Rea5 {[%clk 0:01:49]} 32. Rcc2 {[%clk 0:01:48]}  Rc3 {[%clk 0:01:46]} 33. Rxc3 {[%clk 0:01:47]}  Bxc3 {[%clk 0:01:46]} 34. Rc2 {[%clk 0:01:47]}  Bd4 {[%clk 0:01:46]} 35. Ke2 {[%clk 0:01:47]}  Ra3 {[%clk 0:01:39]} 36. Bh3 {[%clk 0:01:41]}  Ba4 {[%clk 0:01:37]} 37. Rd2 {[%clk 0:01:40]}  Bc3 {[%clk 0:01:34]} 38. Rc2 {[%clk 0:01:36]}  Bxc2 {[%clk 0:01:33]} 0-1


[Site "https://www.chess.com"]

[Event "Titled Tuesday Blitz January 18 2022"]
[White "Nyzhnyk, Illya"]
[Black "Vokhidov, Shamsiddin"]
[WhiteFideId "14118084"]
[BlackFideId "14204223"]
[WhiteElo "2949"]
[BlackElo "2825"]
[Result "1-0"]
[Round "07"]
[TimeControl "180+1"]
[Date "2022.01.18"]
[WhiteClock "0:00:08"]
[BlackClock "0:00:01"]

1. d4 {[%clk 0:03:00]}  Nf6 {[%clk 0:03:00]} 2. c4 {[%clk 0:03:00]}  e6 {[%clk 0:03:00]} 3. Nf3 {[%clk 0:02:57]}  d5 {[%clk 0:03:00]} 4. Nc3 {[%clk 0:02:52]}  Bb4 {[%clk 0:03:00]} 5. Qa4+ {[%clk 0:02:51]}  Nc6 {[%clk 0:02:59]} 6. e3 {[%clk 0:02:51]}  O-O {[%clk 0:02:59]} 7. Bd2 {[%clk 0:02:51]}  dxc4 {[%clk 0:02:59]} 8. Bxc4 {[%clk 0:02:50]}  Bd6 {[%clk 0:02:59]} 9. Qc2 {[%clk 0:02:47]}  a6 {[%clk 0:02:59]} 10. a3 {[%clk 0:02:45]}  e5 {[%clk 0:02:57]} 11. dxe5 {[%clk 0:02:45]}  Nxe5 {[%clk 0:02:58]} 12. Nxe5 {[%clk 0:02:45]}  Bxe5 {[%clk 0:02:59]} 13. O-O-O {[%clk 0:02:44]}  Qe7 {[%clk 0:02:56]} 14. h3 {[%clk 0:02:40]}  Be6 {[%clk 0:02:53]} 15. Bxe6 {[%clk 0:02:37]}  Qxe6 {[%clk 0:02:54]} 16. g4 {[%clk 0:02:38]}  Rfd8 {[%clk 0:02:49]} 17. Ne2 {[%clk 0:02:35]}  Ne4 {[%clk 0:02:48]} 18. Rhf1 {[%clk 0:02:15]}  Rd6 {[%clk 0:02:16]} 19. Kb1 {[%clk 0:02:13]}  f5 {[%clk 0:01:49]} 20. gxf5 {[%clk 0:01:55]}  Qxf5 {[%clk 0:01:49]} 21. Bc1 {[%clk 0:01:54]}  Rad8 {[%clk 0:01:43]} 22. Rxd6 {[%clk 0:01:44]}  Rxd6 {[%clk 0:01:44]} 23. f3 {[%clk 0:01:43]}  Ng3 {[%clk 0:01:27]} 24. Nxg3 {[%clk 0:01:27]}  Qxc2+ {[%clk 0:01:27]} 25. Kxc2 {[%clk 0:01:28]}  Bxg3 {[%clk 0:01:28]} 26. e4 {[%clk 0:01:29]}  Kf7 {[%clk 0:01:20]} 27. f4 {[%clk 0:01:29]}  Rh6 {[%clk 0:01:15]} 28. Rf3 {[%clk 0:01:11]}  Rxh3 {[%clk 0:01:14]} 29. Bd2 {[%clk 0:01:11]}  h5 {[%clk 0:01:13]} 30. f5 {[%clk 0:01:12]}  h4 {[%clk 0:01:12]} 31. e5 {[%clk 0:01:12]}  Rh2 {[%clk 0:01:10]} 32. e6+ {[%clk 0:01:11]}  Kf6 {[%clk 0:01:11]} 33. Kd3 {[%clk 0:01:09]}  Ke7 {[%clk 0:00:48]} 34. Bc3 {[%clk 0:01:04]}  Rg2 {[%clk 0:00:34]} 35. Bxg7 {[%clk 0:00:42]}  h3 {[%clk 0:00:34]} 36. Re3 {[%clk 0:00:40]}  h2 {[%clk 0:00:17]} 37. f6+ {[%clk 0:00:40]}  Kd6 {[%clk 0:00:17]} 38. f7 {[%clk 0:00:37]}  h1=Q {[%clk 0:00:09]} 39. f8=Q+ {[%clk 0:00:37]}  Kc6 {[%clk 0:00:09]} 40. Qf3+ {[%clk 0:00:35]}  Kb6 {[%clk 0:00:08]} 41. Kc4 {[%clk 0:00:20]}  Qc1+ {[%clk 0:00:06]} 42. Bc3 {[%clk 0:00:17]}  Qc2 {[%clk 0:00:02]} 43. b3 {[%clk 0:00:07]}  c6 {[%clk 0:00:02]} 44. Qe4 {[%clk 0:00:06]}  Bd6 {[%clk 0:00:02]} 45. Qxc2 {[%clk 0:00:06]}  Rxc2 {[%clk 0:00:01]} 46. e7 {[%clk 0:00:07]}  Bxe7 {[%clk 0:00:02]} 47. Rxe7 {[%clk 0:00:07]}  Rc1 {[%clk 0:00:02]} 48. a4 {[%clk 0:00:08]}  c5 {[%clk 0:00:01]} 49. a5+ {[%clk 0:00:08]} 1-0


[Site "https://www.chess.com"]

[Event "Titled Tuesday Blitz January 18 2022"]
[White "Omelja, Artem"]
[Black "Prydun, Andriy"]
[WhiteFideId "14119846"]
[BlackFideId "14145898"]
[WhiteElo "2418"]
[BlackElo "2047"]
[Result "1/2-1/2"]
[Round "07"]
[TimeControl "180+1"]
[Date "2022.01.18"]
[WhiteClock "0:00:04"]
[BlackClock "0:00:04"]

1. d4 {[%clk 0:02:44]}  Na6 {[%clk 0:02:59]} 2. e4 {[%clk 0:02:42]}  c5 {[%clk 0:02:59]} 3. Bxa6 {[%clk 0:02:23]}  bxa6 {[%clk 0:02:59]} 4. dxc5 {[%clk 0:02:23]}  Qa5+ {[%clk 0:02:59]} 5. Nc3 {[%clk 0:02:21]}  Qxc5 {[%clk 0:02:58]} 6. Be3 {[%clk 0:02:22]}  Qc6 {[%clk 0:02:58]} 7. Nge2 {[%clk 0:02:20]}  e6 {[%clk 0:02:53]} 8. O-O {[%clk 0:02:20]}  Bb7 {[%clk 0:02:51]} 9. Nd4 {[%clk 0:02:20]}  Qc7 {[%clk 0:02:51]} 10. Qd2 {[%clk 0:01:56]}  Nf6 {[%clk 0:02:48]} 11. f3 {[%clk 0:01:53]}  Bd6 {[%clk 0:02:47]} 12. g3 {[%clk 0:01:22]}  Be7 {[%clk 0:01:53]} 13. Rad1 {[%clk 0:00:45]}  O-O {[%clk 0:01:51]} 14. Kg2 {[%clk 0:00:44]}  d6 {[%clk 0:01:46]} 15. Nb3 {[%clk 0:00:40]}  Rfc8 {[%clk 0:01:41]} 16. Bd4 {[%clk 0:00:38]}  Nd7 {[%clk 0:01:40]} 17. Qf2 {[%clk 0:00:37]}  Nb6 {[%clk 0:01:35]} 18. Bxb6 {[%clk 0:00:22]}  axb6 {[%clk 0:01:34]} 19. Na4 {[%clk 0:00:22]}  Bd8 {[%clk 0:01:32]} 20. Rd2 {[%clk 0:00:16]}  d5 {[%clk 0:01:32]} 21. exd5 {[%clk 0:00:14]}  Bxd5 {[%clk 0:01:28]} 22. Rfd1 {[%clk 0:00:14]}  Bc6 {[%clk 0:01:28]} 23. Nc3 {[%clk 0:00:14]}  Be7 {[%clk 0:01:24]} 24. Nd4 {[%clk 0:00:13]}  Bb7 {[%clk 0:01:22]} 25. Nb3 {[%clk 0:00:13]}  h6 {[%clk 0:01:16]} 26. Na4 {[%clk 0:00:13]}  Bd8 {[%clk 0:01:13]} 27. Rd6 {[%clk 0:00:12]}  Bc6 {[%clk 0:01:10]} 28. Nc3 {[%clk 0:00:10]}  Be7 {[%clk 0:01:09]} 29. R6d2 {[%clk 0:00:10]}  b5 {[%clk 0:01:02]} 30. Nd4 {[%clk 0:00:10]}  Bb7 {[%clk 0:01:01]} 31. Nb3 {[%clk 0:00:08]}  Rd8 {[%clk 0:00:55]} 32. Ne4 {[%clk 0:00:07]}  Bxe4 {[%clk 0:00:22]} 33. fxe4 {[%clk 0:00:07]}  Qb7 {[%clk 0:00:23]} 34. Qf3 {[%clk 0:00:06]}  Bf6 {[%clk 0:00:07]} 35. c3 {[%clk 0:00:06]}  Qb6 {[%clk 0:00:06]} 36. Nd4 {[%clk 0:00:06]}  a5 {[%clk 0:00:05]} 37. Qf2 {[%clk 0:00:04]}  b4 {[%clk 0:00:05]} 38. Nb3 {[%clk 0:00:03]}  Qxf2+ {[%clk 0:00:04]} 39. Kxf2 {[%clk 0:00:04]}  Rdc8 {[%clk 0:00:04]} 40. cxb4 {[%clk 0:00:04]}  axb4 {[%clk 0:00:05]} 41. a3 {[%clk 0:00:03]}  bxa3 {[%clk 0:00:05]} 42. bxa3 {[%clk 0:00:04]}  Rxa3 {[%clk 0:00:05]} 43. Nd4 {[%clk 0:00:05]}  Ra4 {[%clk 0:00:04]} 44. Nf3 {[%clk 0:00:05]}  Rxe4 {[%clk 0:00:04]} 45. Re2 {[%clk 0:00:05]}  Rxe2+ {[%clk 0:00:04]} 46. Kxe2 {[%clk 0:00:06]}  Rc2+ {[%clk 0:00:04]} 47. Ke3 {[%clk 0:00:05]}  Rc3+ {[%clk 0:00:04]} 48. Kf2 {[%clk 0:00:05]}  Kh7 {[%clk 0:00:05]} 49. h4 {[%clk 0:00:05]}  Rc2+ {[%clk 0:00:05]} 50. Ke3 {[%clk 0:00:05]}  Rc3+ {[%clk 0:00:06]} 51. Kf2 {[%clk 0:00:06]}  Kg6 {[%clk 0:00:06]} 52. Rd2 {[%clk 0:00:05]}  Rc4 {[%clk 0:00:06]} 53. Re2 {[%clk 0:00:06]}  h5 {[%clk 0:00:06]} 54. Kg2 {[%clk 0:00:06]}  Kf5 {[%clk 0:00:06]} 55. Rf2 {[%clk 0:00:06]}  Kg6 {[%clk 0:00:05]} 56. Re2 {[%clk 0:00:06]}  Rc5 {[%clk 0:00:05]} 57. Re4 {[%clk 0:00:06]}  Rf5 {[%clk 0:00:04]} 58. Re2 {[%clk 0:00:06]}  Kh7 {[%clk 0:00:04]} 59. Nd2 {[%clk 0:00:06]}  g6 {[%clk 0:00:04]} 60. Nf3 {[%clk 0:00:06]}  Bg7 {[%clk 0:00:04]} 61. Ra2 {[%clk 0:00:06]}  e5 {[%clk 0:00:04]} 62. Ra7 {[%clk 0:00:06]}  f6 {[%clk 0:00:04]} 63. Nd2 {[%clk 0:00:06]}  Kg8 {[%clk 0:00:03]} 64. Ne4 {[%clk 0:00:06]}  Bf8 {[%clk 0:00:03]} 65. Ra8 {[%clk 0:00:04]}  Kf7 {[%clk 0:00:03]} 66. Ra7+ {[%clk 0:00:05]}  Ke6 {[%clk 0:00:03]} 67. Ra6+ {[%clk 0:00:05]}  Kf7 {[%clk 0:00:03]} 68. Ra7+ {[%clk 0:00:05]}  Ke6 {[%clk 0:00:04]} 69. Ra6+ {[%clk 0:00:05]}  Kf7 {[%clk 0:00:04]} 70. Ra7+ {[%clk 0:00:04]} 1/2-1/2


[Site "https://www.chess.com"]